[Event "Titled Tuesday Blitz May 10 Early 2022"]
[White "Todorovic, Bojan"]
[Black "Ceres, Dragos"]
[WhiteFideId "917087"]
[BlackFideId "13905864"]
[WhiteElo "2266"]
[BlackElo "2150"]
[Result "1-0"]
[Round "02"]
[TimeControl "180+1"]
[Date "2022.05.11"]
[WhiteClock "0:00:28"]
[BlackClock "0:00:09"]

1. d4 {[%clk 0:02:51]}  Nf6 {[%clk 0:02:57]} 2. c4 {[%clk 0:02:50]}  e6 {[%clk 0:02:55]} 3. Nc3 {[%clk 0:02:48]}  Bb4 {[%clk 0:02:54]} 4. e3 {[%clk 0:02:47]}  O-O {[%clk 0:02:54]} 5. Nf3 {[%clk 0:02:47]}  b6 {[%clk 0:02:49]} 6. Bd3 {[%clk 0:02:46]}  Bb7 {[%clk 0:02:49]} 7. O-O {[%clk 0:02:46]}  d5 {[%clk 0:02:48]} 8. Qe2 {[%clk 0:02:43]}  a6 {[%clk 0:02:18]} 9. Bd2 {[%clk 0:02:41]}  Bd6 {[%clk 0:02:15]} 10. e4 {[%clk 0:02:33]}  dxe4 {[%clk 0:02:07]} 11. Nxe4 {[%clk 0:02:32]}  Nxe4 {[%clk 0:02:02]} 12. Bxe4 {[%clk 0:02:32]}  Bxe4 {[%clk 0:02:03]} 13. Qxe4 {[%clk 0:02:32]}  Nd7 {[%clk 0:02:03]} 14. Rad1 {[%clk 0:02:09]}  Nf6 {[%clk 0:02:01]} 15. Qh4 {[%clk 0:02:06]}  Be7 {[%clk 0:01:56]} 16. Rfe1 {[%clk 0:01:52]}  Re8 {[%clk 0:01:49]} 17. Ne5 {[%clk 0:01:44]}  Nd7 {[%clk 0:01:47]} 18. Qg3 {[%clk 0:01:34]}  Nxe5 {[%clk 0:01:46]} 19. dxe5 {[%clk 0:01:34]}  Qc8 {[%clk 0:01:40]} 20. Bh6 {[%clk 0:01:22]}  Bf8 {[%clk 0:01:40]} 21. Rd4 {[%clk 0:01:21]}  Re7 {[%clk 0:01:17]} 22. Rg4 {[%clk 0:01:07]}  g6 {[%clk 0:01:17]} 23. Bg5 {[%clk 0:01:07]}  Rd7 {[%clk 0:01:17]} 24. Bf6 {[%clk 0:01:06]}  Bg7 {[%clk 0:01:16]} 25. Rh4 {[%clk 0:01:03]}  Qf8 {[%clk 0:01:06]} 26. h3 {[%clk 0:00:58]}  b5 {[%clk 0:00:56]} 27. Ree4 {[%clk 0:00:50]}  Rd1+ {[%clk 0:00:44]} 28. Kh2 {[%clk 0:00:50]}  Bxf6 {[%clk 0:00:35]} 29. exf6 {[%clk 0:00:50]}  Qd6 {[%clk 0:00:35]} 30. f4 {[%clk 0:00:38]}  Rd4 {[%clk 0:00:28]} 31. Re5 {[%clk 0:00:37]}  Rxc4 {[%clk 0:00:23]} 32. Reh5 {[%clk 0:00:33]}  Qd8 {[%clk 0:00:14]} 33. Qg5 {[%clk 0:00:28]}  Rc5 {[%clk 0:00:09]} 34. Rxh7 {[%clk 0:00:28]} 1-0


[Site "https://www.chess.com"]

[Event "Titled Tuesday Blitz May 10 Early 2022"]
[White "Trimitzios, Petros"]
[Black "Devaev, Alexander"]
[WhiteFideId "25808796"]
[BlackFideId "4169395"]
[WhiteElo "2049"]
[BlackElo "2185"]
[Result "1-0"]
[Round "02"]
[TimeControl "180+1"]
[Date "2022.05.11"]
[WhiteClock "0:00:28"]
[BlackClock "0:00:02"]

1. Nf3 {[%clk 0:03:00]}  Nf6 {[%clk 0:02:59]} 2. d4 {[%clk 0:03:01]}  e6 {[%clk 0:02:59]} 3. c4 {[%clk 0:03:01]}  c5 {[%clk 0:02:49]} 4. e3 {[%clk 0:02:59]}  cxd4 {[%clk 0:02:49]} 5. exd4 {[%clk 0:03:00]}  d5 {[%clk 0:02:50]} 6. cxd5 {[%clk 0:03:01]}  Nxd5 {[%clk 0:02:50]} 7. Nc3 {[%clk 0:03:01]}  Bb4 {[%clk 0:02:50]} 8. Bd2 {[%clk 0:03:01]}  Nc6 {[%clk 0:02:51]} 9. Bd3 {[%clk 0:03:01]}  O-O {[%clk 0:02:51]} 10. O-O {[%clk 0:03:00]}  Be7 {[%clk 0:02:52]} 11. Rc1 {[%clk 0:02:59]}  Bf6 {[%clk 0:02:52]} 12. Be3 {[%clk 0:02:55]}  Nce7 {[%clk 0:02:52]} 13. Qe2 {[%clk 0:02:54]}  Ng6 {[%clk 0:02:50]} 14. Bb1 {[%clk 0:02:53]}  Nxc3 {[%clk 0:02:37]} 15. bxc3 {[%clk 0:02:51]}  Bd7 {[%clk 0:02:38]} 16. Rfd1 {[%clk 0:02:50]}  b5 {[%clk 0:02:34]} 17. Bd3 {[%clk 0:02:48]}  a6 {[%clk 0:02:34]} 18. c4 {[%clk 0:02:47]}  bxc4 {[%clk 0:02:25]} 19. Bxc4 {[%clk 0:02:48]}  Bb5 {[%clk 0:02:25]} 20. Bxb5 {[%clk 0:02:46]}  axb5 {[%clk 0:02:26]} 21. Qxb5 {[%clk 0:02:47]}  Rxa2 {[%clk 0:02:26]} 22. d5 {[%clk 0:02:47]}  Ra5 {[%clk 0:02:19]} 23. Qb7 {[%clk 0:02:35]}  Rxd5 {[%clk 0:02:19]} 24. Rxd5 {[%clk 0:02:35]}  Qxd5 {[%clk 0:02:20]} 25. Qb6 {[%clk 0:02:25]}  h6 {[%clk 0:02:15]} 26. h3 {[%clk 0:02:25]}  Ne5 {[%clk 0:02:10]} 27. Nxe5 {[%clk 0:02:22]}  Bxe5 {[%clk 0:02:10]} 28. g3 {[%clk 0:02:21]}  Rb8 {[%clk 0:02:08]} 29. Qa6 {[%clk 0:02:14]}  Ra8 {[%clk 0:02:06]} 30. Qb6 {[%clk 0:02:11]}  Qf3 {[%clk 0:01:47]} 31. Re1 {[%clk 0:02:00]}  Bxg3 {[%clk 0:01:09]} 32. fxg3 {[%clk 0:01:54]}  Qxg3+ {[%clk 0:01:10]} 33. Kf1 {[%clk 0:01:53]}  Qxh3+ {[%clk 0:01:10]} 34. Kg1 {[%clk 0:01:44]}  Qg3+ {[%clk 0:00:41]} 35. Kf1 {[%clk 0:01:41]}  Ra4 {[%clk 0:00:37]} 36. Qd8+ {[%clk 0:01:35]}  Kh7 {[%clk 0:00:37]} 37. Qd3+ {[%clk 0:01:36]}  f5 {[%clk 0:00:36]} 38. Ke2 {[%clk 0:01:31]}  Ra2+ {[%clk 0:00:18]} 39. Bd2 {[%clk 0:01:25]}  Qg4+ {[%clk 0:00:19]} 40. Kf2 {[%clk 0:01:23]}  e5 {[%clk 0:00:13]} 41. Rg1 {[%clk 0:01:09]}  Qh4+ {[%clk 0:00:13]} 42. Ke2 {[%clk 0:01:00]}  e4 {[%clk 0:00:14]} 43. Qd4 {[%clk 0:00:52]}  Qh2+ {[%clk 0:00:12]} 44. Kf1 {[%clk 0:00:50]}  Qh3+ {[%clk 0:00:08]} 45. Ke1 {[%clk 0:00:47]}  Qh4+ {[%clk 0:00:05]} 46. Kd1 {[%clk 0:00:45]}  Qh5+ {[%clk 0:00:05]} 47. Kc1 {[%clk 0:00:42]}  Qf7 {[%clk 0:00:02]} 48. Bc3 {[%clk 0:00:41]}  Ra7 {[%clk 0:00:02]} 49. Rg3 {[%clk 0:00:32]}  Rd7 {[%clk 0:00:02]} 50. Qe5 {[%clk 0:00:32]}  Re7 {[%clk 0:00:02]} 51. Qd4 {[%clk 0:00:31]}  Rd7 {[%clk 0:00:03]} 52. Qe5 {[%clk 0:00:29]}  Re7 {[%clk 0:00:03]} 53. Qc5 {[%clk 0:00:29]}  Qe6 {[%clk 0:00:01]} 54. Qd4 {[%clk 0:00:27]}  Rf7 {[%clk 0:00:01]} 55. Rxg7+ {[%clk 0:00:27]}  Rxg7 {[%clk 0:00:02]} 56. Qxg7# {[%clk 0:00:28]} 1-0


[Site "https://www.chess.com"]

[Event "Titled Tuesday Blitz May 10 Early 2022"]
[White "Unver, Cumali"]
[Black "Jaskolka, Tomasz"]
[WhiteFideId "6304940"]
[BlackFideId "1170791"]
[WhiteElo "2013"]
[BlackElo "2073"]
[Result "0-1"]
[Round "02"]
[TimeControl "180+1"]
[Date "2022.05.11"]
[WhiteClock "0:00:28"]
[BlackClock "0:01:56"]

1. e4 {[%clk 0:01:09]}  c5 {[%clk 0:02:58]} 2. Nf3 {[%clk 0:01:09]}  e6 {[%clk 0:02:58]} 3. c3 {[%clk 0:01:08]}  Nf6 {[%clk 0:02:57]} 4. e5 {[%clk 0:01:07]}  Nd5 {[%clk 0:02:57]} 5. d4 {[%clk 0:01:08]}  cxd4 {[%clk 0:02:57]} 6. cxd4 {[%clk 0:01:09]}  d6 {[%clk 0:02:56]} 7. a3 {[%clk 0:01:09]}  Be7 {[%clk 0:02:51]} 8. Bd3 {[%clk 0:01:09]}  O-O {[%clk 0:02:48]} 9. Qc2 {[%clk 0:01:09]}  h6 {[%clk 0:02:47]} 10. O-O {[%clk 0:01:03]}  b6 {[%clk 0:02:45]} 11. Qe2 {[%clk 0:01:02]}  dxe5 {[%clk 0:02:38]} 12. dxe5 {[%clk 0:01:02]}  f5 {[%clk 0:02:08]} 13. exf6 {[%clk 0:00:55]}  Nxf6 {[%clk 0:02:08]} 14. Rd1 {[%clk 0:00:54]}  Qe8 {[%clk 0:02:08]} 15. Nc3 {[%clk 0:00:52]}  Nc6 {[%clk 0:02:04]} 16. Bf4 {[%clk 0:00:51]}  Qf7 {[%clk 0:02:00]} 17. Ne5 {[%clk 0:00:42]}  Nxe5 {[%clk 0:02:00]} 18. Bxe5 {[%clk 0:00:43]}  Bb7 {[%clk 0:02:00]} 19. Ne4 {[%clk 0:00:42]}  Nxe4 {[%clk 0:01:57]} 20. Bxe4 {[%clk 0:00:43]}  Bxe4 {[%clk 0:01:57]} 21. Qxe4 {[%clk 0:00:29]}  Qxf2+ {[%clk 0:01:56]} 22. Kh1 {[%clk 0:00:28]}  Qf5 {[%clk 0:01:56]} 0-1


[Site "https://www.chess.com"]

[Event "Titled Tuesday Blitz May 10 Early 2022"]
[White "Valle Maytin, Luis Enrique"]
[Black "Hansch, Karsten"]
[WhiteFideId "3503666"]
[BlackFideId "24692239"]
[WhiteElo "2285"]
[BlackElo "2358"]
[Result "0-1"]
[Round "02"]
[TimeControl "180+1"]
[Date "2022.05.11"]
[WhiteClock "0:00:04"]
[BlackClock "0:01:18"]

1. e4 {[%clk 0:03:00]}  c6 {[%clk 0:03:00]} 2. d4 {[%clk 0:02:58]}  d5 {[%clk 0:03:00]} 3. e5 {[%clk 0:02:57]}  Bf5 {[%clk 0:03:00]} 4. g4 {[%clk 0:02:57]}  Be4 {[%clk 0:03:01]} 5. f3 {[%clk 0:02:57]}  Bg6 {[%clk 0:03:01]} 6. e6 {[%clk 0:02:57]}  fxe6 {[%clk 0:03:00]} 7. h4 {[%clk 0:02:57]}  Qd6 {[%clk 0:03:00]} 8. h5 {[%clk 0:02:54]}  Bf7 {[%clk 0:02:59]} 9. f4 {[%clk 0:02:53]}  c5 {[%clk 0:02:59]} 10. c3 {[%clk 0:02:49]}  Nc6 {[%clk 0:02:59]} 11. Nf3 {[%clk 0:02:49]}  Nf6 {[%clk 0:02:57]} 12. Bb5 {[%clk 0:02:47]}  Nxg4 {[%clk 0:02:55]} 13. Ne5 {[%clk 0:02:17]}  Nf6 {[%clk 0:02:51]} 14. Qa4 {[%clk 0:02:06]}  Rc8 {[%clk 0:02:35]} 15. Qxa7 {[%clk 0:02:06]}  Qc7 {[%clk 0:02:31]} 16. Qxc5 {[%clk 0:01:53]}  Bxh5 {[%clk 0:02:31]} 17. Nd2 {[%clk 0:01:24]}  g6 {[%clk 0:02:30]} 18. Nf1 {[%clk 0:01:16]}  Bg7 {[%clk 0:02:29]} 19. Ng3 {[%clk 0:01:14]}  O-O {[%clk 0:02:30]} 20. Bxc6 {[%clk 0:01:12]}  bxc6 {[%clk 0:02:29]} 21. a4 {[%clk 0:01:03]}  Qd6 {[%clk 0:02:23]} 22. Nd3 {[%clk 0:00:46]}  Ne4 {[%clk 0:02:18]} 23. Nxe4 {[%clk 0:00:36]}  dxe4 {[%clk 0:02:18]} 24. Nf2 {[%clk 0:00:36]}  Qxc5 {[%clk 0:02:18]} 25. dxc5 {[%clk 0:00:37]}  Bf3 {[%clk 0:02:18]} 26. Rh3 {[%clk 0:00:34]}  e5 {[%clk 0:02:18]} 27. fxe5 {[%clk 0:00:22]}  Bxe5 {[%clk 0:02:19]} 28. Kd2 {[%clk 0:00:19]}  Bg2 {[%clk 0:02:14]} 29. Ke2 {[%clk 0:00:18]}  Bxh3 {[%clk 0:02:14]} 30. Nxh3 {[%clk 0:00:19]}  Rf3 {[%clk 0:02:12]} 31. Nf2 {[%clk 0:00:19]}  Rcf8 {[%clk 0:02:12]} 32. Nxe4 {[%clk 0:00:19]}  Rh3 {[%clk 0:02:12]} 33. Be3 {[%clk 0:00:18]}  Rh2+ {[%clk 0:02:11]} 34. Kd3 {[%clk 0:00:16]}  Rxb2 {[%clk 0:02:11]} 35. a5 {[%clk 0:00:17]}  Ra8 {[%clk 0:02:09]} 36. Nd2 {[%clk 0:00:13]}  Bc7 {[%clk 0:02:04]} 37. Nc4 {[%clk 0:00:13]}  Rb5 {[%clk 0:02:03]} 38. a6 {[%clk 0:00:13]}  Ra7 {[%clk 0:02:03]} 39. Nb6 {[%clk 0:00:13]}  Kf7 {[%clk 0:01:55]} 40. Kc2 {[%clk 0:00:13]}  Ke6 {[%clk 0:01:55]} 41. c4 {[%clk 0:00:13]}  Rb4 {[%clk 0:01:53]} 42. Bd2 {[%clk 0:00:12]}  Rxb6 {[%clk 0:01:50]} 43. cxb6 {[%clk 0:00:12]}  Bxb6 {[%clk 0:01:51]} 44. Bb4 {[%clk 0:00:12]}  Bd4 {[%clk 0:01:51]} 45. Ra5 {[%clk 0:00:11]}  c5 {[%clk 0:01:50]} 46. Bd2 {[%clk 0:00:09]}  Kd6 {[%clk 0:01:50]} 47. Bf4+ {[%clk 0:00:08]}  Kc6 {[%clk 0:01:50]} 48. Bb8 {[%clk 0:00:07]}  Ra8 {[%clk 0:01:47]} 49. a7 {[%clk 0:00:07]}  e5 {[%clk 0:01:43]} 50. Ra3 {[%clk 0:00:06]}  Kb7 {[%clk 0:01:29]} 51. Kd3 {[%clk 0:00:06]}  Rxb8 {[%clk 0:01:28]} 52. axb8=Q+ {[%clk 0:00:07]}  Kxb8 {[%clk 0:01:29]} 53. Ke4 {[%clk 0:00:07]}  Kc7 {[%clk 0:01:29]} 54. Rf3 {[%clk 0:00:07]}  Kb6 {[%clk 0:01:29]} 55. Rf7 {[%clk 0:00:07]}  h5 {[%clk 0:01:28]} 56. Rf6+ {[%clk 0:00:06]}  Ka5 {[%clk 0:01:28]} 57. Rxg6 {[%clk 0:00:06]}  Kb4 {[%clk 0:01:29]} 58. Kd5 {[%clk 0:00:06]}  Kc3 {[%clk 0:01:26]} 59. Rg3+ {[%clk 0:00:05]}  Kd2 {[%clk 0:01:26]} 60. Rh3 {[%clk 0:00:06]}  Kc2 {[%clk 0:01:19]} 61. Rxh5 {[%clk 0:00:05]}  Kd3 {[%clk 0:01:20]} 62. Rh3+ {[%clk 0:00:05]}  Kc2 {[%clk 0:01:17]} 63. Ke4 {[%clk 0:00:05]}  Kd2 {[%clk 0:01:17]} 64. Ra3 {[%clk 0:00:05]}  Kc2 {[%clk 0:01:18]} 65. Rf3 {[%clk 0:00:05]}  Kd2 {[%clk 0:01:18]} 66. Rh3 {[%clk 0:00:05]}  Kc2 {[%clk 0:01:18]} 67. Rg3 {[%clk 0:00:05]}  Kb2 {[%clk 0:01:18]} 68. Rh3 {[%clk 0:00:06]}  Kc2 {[%clk 0:01:18]} 69. Rg3 {[%clk 0:00:06]}  Bb2 {[%clk 0:01:17]} 70. Rg2+ {[%clk 0:00:04]}  Kb3 {[%clk 0:01:18]} 0-1


[Site "https://www.chess.com"]

[Event "Titled Tuesday Blitz May 10 Early 2022"]
[White "Van den Dikkenberg, Erik"]
[Black "Ljukin, Sergei"]
[WhiteFideId "1005880"]
[BlackFideId "14102200"]
[WhiteElo "2118"]
[BlackElo "2312"]
[Result "1-0"]
[Round "02"]
[TimeControl "180+1"]
[Date "2022.05.11"]
[WhiteClock "0:02:24"]
[BlackClock "0:02:14"]

1. e4 {[%clk 0:03:00]}  e6 {[%clk 0:02:59]} 2. d4 {[%clk 0:02:59]}  d5 {[%clk 0:03:00]} 3. Nc3 {[%clk 0:02:59]}  Bb4 {[%clk 0:02:59]} 4. e5 {[%clk 0:02:59]}  Ne7 {[%clk 0:02:59]} 5. Bd2 {[%clk 0:02:57]}  b6 {[%clk 0:02:58]} 6. Nb5 {[%clk 0:02:56]}  Bxd2+ {[%clk 0:02:57]} 7. Qxd2 {[%clk 0:02:56]}  O-O {[%clk 0:02:57]} 8. f4 {[%clk 0:02:54]}  Nf5 {[%clk 0:02:49]} 9. Nf3 {[%clk 0:02:53]}  c5 {[%clk 0:02:49]} 10. Bd3 {[%clk 0:02:46]}  a6 {[%clk 0:02:33]} 11. Bxf5 {[%clk 0:02:42]}  axb5 {[%clk 0:02:33]} 12. Bxh7+ {[%clk 0:02:27]}  Kxh7 {[%clk 0:02:31]} 13. Ng5+ {[%clk 0:02:27]}  Kg8 {[%clk 0:02:29]} 14. Qd3 {[%clk 0:02:25]}  g6 {[%clk 0:02:14]} 15. Qh3 {[%clk 0:02:24]} 1-0


[Site "https://www.chess.com"]

[Event "Titled Tuesday Blitz May 10 Early 2022"]
[White "Vidonyak, Roman"]
[Black "Ambartsumova, Karina"]
[WhiteFideId "14100622"]
[BlackFideId "4166299"]
[WhiteElo "2393"]
[BlackElo "2262"]
[Result "0-1"]
[Round "02"]
[TimeControl "180+1"]
[Date "2022.05.11"]
[WhiteClock "0:01:33"]
[BlackClock "0:01:29"]

1. d4 {[%clk 0:03:00]}  Nf6 {[%clk 0:02:59]} 2. c4 {[%clk 0:02:57]}  e6 {[%clk 0:02:59]} 3. Nc3 {[%clk 0:02:57]}  d5 {[%clk 0:02:59]} 4. cxd5 {[%clk 0:02:56]}  exd5 {[%clk 0:03:00]} 5. Bg5 {[%clk 0:02:57]}  Be7 {[%clk 0:03:00]} 6. e3 {[%clk 0:02:56]}  c6 {[%clk 0:03:00]} 7. Bd3 {[%clk 0:02:55]}  Nbd7 {[%clk 0:03:00]} 8. Qc2 {[%clk 0:02:55]}  h6 {[%clk 0:03:01]} 9. Bh4 {[%clk 0:02:55]}  Nh5 {[%clk 0:03:01]} 10. Bxe7 {[%clk 0:02:54]}  Qxe7 {[%clk 0:03:02]} 11. Nf3 {[%clk 0:02:53]}  Nf4 {[%clk 0:03:00]} 12. O-O {[%clk 0:02:51]}  Nxd3 {[%clk 0:02:59]} 13. Qxd3 {[%clk 0:02:52]}  O-O {[%clk 0:02:58]} 14. Rfb1 {[%clk 0:02:48]}  a5 {[%clk 0:02:58]} 15. a3 {[%clk 0:02:47]}  Nb6 {[%clk 0:02:56]} 16. b4 {[%clk 0:02:45]}  axb4 {[%clk 0:02:57]} 17. axb4 {[%clk 0:02:46]}  Rxa1 {[%clk 0:02:51]} 18. Rxa1 {[%clk 0:02:47]}  Qxb4 {[%clk 0:02:46]} 19. Rb1 {[%clk 0:02:40]}  Qa5 {[%clk 0:02:45]} 20. Ne5 {[%clk 0:02:33]}  f6 {[%clk 0:02:27]} 21. Ng6 {[%clk 0:02:27]}  Re8 {[%clk 0:02:27]} 22. Nf4 {[%clk 0:02:22]}  Re7 {[%clk 0:01:42]} 23. Rc1 {[%clk 0:01:49]}  Nc4 {[%clk 0:01:35]} 24. e4 {[%clk 0:01:38]}  Qa3 {[%clk 0:01:30]} 25. exd5 {[%clk 0:01:33]}  Qxc1+ {[%clk 0:01:29]} 0-1


[Site "https://www.chess.com"]

[Event "Titled Tuesday Blitz May 10 Early 2022"]
[White "Vignesh, N R"]
[Black "Legenia, Artem"]
[WhiteFideId "25012215"]
[BlackFideId "14136945"]
[WhiteElo "2363"]
[BlackElo "1936"]
[Result "1-0"]
[Round "02"]
[TimeControl "180+1"]
[Date "2022.05.11"]
[WhiteClock "0:01:34"]
[BlackClock "0:00:54"]

1. d4 {[%clk 0:03:00]}  d5 {[%clk 0:02:43]} 2. c4 {[%clk 0:02:59]}  e6 {[%clk 0:02:43]} 3. Nc3 {[%clk 0:02:57]}  c6 {[%clk 0:02:44]} 4. e3 {[%clk 0:02:53]}  Nf6 {[%clk 0:02:44]} 5. Nf3 {[%clk 0:02:51]}  Nbd7 {[%clk 0:02:43]} 6. Be2 {[%clk 0:02:50]}  Bd6 {[%clk 0:02:37]} 7. O-O {[%clk 0:02:50]}  O-O {[%clk 0:02:37]} 8. b3 {[%clk 0:02:49]}  h6 {[%clk 0:02:35]} 9. Bb2 {[%clk 0:02:50]}  b6 {[%clk 0:02:35]} 10. Rc1 {[%clk 0:02:49]}  Bb7 {[%clk 0:02:35]} 11. Bd3 {[%clk 0:02:49]}  Qe7 {[%clk 0:02:34]} 12. Re1 {[%clk 0:02:48]}  Rac8 {[%clk 0:02:25]} 13. e4 {[%clk 0:02:44]}  dxe4 {[%clk 0:02:25]} 14. Nxe4 {[%clk 0:02:44]}  Nxe4 {[%clk 0:02:24]} 15. Bxe4 {[%clk 0:02:44]}  Ba3 {[%clk 0:02:24]} 16. Bxa3 {[%clk 0:02:41]}  Qxa3 {[%clk 0:02:24]} 17. Qe2 {[%clk 0:02:40]}  Nf6 {[%clk 0:02:21]} 18. c5 {[%clk 0:02:24]}  Ba6 {[%clk 0:02:07]} 19. Qc2 {[%clk 0:02:20]}  Nxe4 {[%clk 0:02:00]} 20. Qxe4 {[%clk 0:02:16]}  Rfd8 {[%clk 0:01:42]} 21. Ne5 {[%clk 0:02:13]}  Bb7 {[%clk 0:01:38]} 22. Nc4 {[%clk 0:02:06]}  Qxa2 {[%clk 0:01:35]} 23. Nd6 {[%clk 0:02:06]}  Rc7 {[%clk 0:01:29]} 24. Ra1 {[%clk 0:02:04]}  Qxb3 {[%clk 0:01:27]} 25. Rxa7 {[%clk 0:01:59]}  bxc5 {[%clk 0:01:24]} 26. dxc5 {[%clk 0:01:58]}  Qd5 {[%clk 0:01:15]} 27. Qxd5 {[%clk 0:01:52]}  cxd5 {[%clk 0:01:15]} 28. Rxb7 {[%clk 0:01:48]}  Rxb7 {[%clk 0:01:11]} 29. Nxb7 {[%clk 0:01:48]}  Rc8 {[%clk 0:01:11]} 30. Rc1 {[%clk 0:01:46]}  Kf8 {[%clk 0:01:08]} 31. c6 {[%clk 0:01:43]}  Ke7 {[%clk 0:01:08]} 32. f4 {[%clk 0:01:40]}  Rc7 {[%clk 0:01:01]} 33. Kf2 {[%clk 0:01:40]}  Rc8 {[%clk 0:01:01]} 34. Ke3 {[%clk 0:01:40]}  Ra8 {[%clk 0:01:01]} 35. Kd4 {[%clk 0:01:37]}  f6 {[%clk 0:00:57]} 36. Kc5 {[%clk 0:01:37]}  Ra4 {[%clk 0:00:56]} 37. Kb5 {[%clk 0:01:36]}  Ra8 {[%clk 0:00:54]} 38. Kb6 {[%clk 0:01:35]}  Ra2 {[%clk 0:00:54]} 39. c7 {[%clk 0:01:34]}  Rb2+ {[%clk 0:00:54]} 40. Ka7 {[%clk 0:01:34]} 1-0


[Site "https://www.chess.com"]

[Event "Titled Tuesday Blitz May 10 Early 2022"]
[White "Vusatiuk, Vladimir"]
[Black "Silvestre, Christian"]
[WhiteFideId "14118610"]
[BlackFideId "30956269"]
[WhiteElo "2157"]
[BlackElo "2374"]
[Result "1-0"]
[Round "02"]
[TimeControl "180+1"]
[Date "2022.05.11"]
[WhiteClock "0:01:04"]
[BlackClock "0:00:17"]

1. d4 {[%clk 0:02:57]}  e5 {[%clk 0:02:59]} 2. dxe5 {[%clk 0:02:57]}  Nc6 {[%clk 0:02:59]} 3. Nf3 {[%clk 0:02:57]}  Qe7 {[%clk 0:02:59]} 4. Bf4 {[%clk 0:02:57]}  Qb4+ {[%clk 0:02:58]} 5. Bd2 {[%clk 0:02:58]}  Qe7 {[%clk 0:02:58]} 6. Bc3 {[%clk 0:02:55]}  f6 {[%clk 0:02:40]} 7. exf6 {[%clk 0:02:54]}  Nxf6 {[%clk 0:02:41]} 8. e3 {[%clk 0:02:45]}  d5 {[%clk 0:02:40]} 9. Nbd2 {[%clk 0:02:33]}  Bg4 {[%clk 0:02:38]} 10. Be2 {[%clk 0:02:33]}  O-O-O {[%clk 0:02:37]} 11. h3 {[%clk 0:02:33]}  Bh5 {[%clk 0:02:37]} 12. Nd4 {[%clk 0:02:26]}  Nxd4 {[%clk 0:02:19]} 13. Bxd4 {[%clk 0:02:21]}  Bxe2 {[%clk 0:01:52]} 14. Qxe2 {[%clk 0:02:22]}  c5 {[%clk 0:01:50]} 15. Bxf6 {[%clk 0:02:11]}  Qxf6 {[%clk 0:01:49]} 16. c3 {[%clk 0:02:09]}  Bd6 {[%clk 0:01:45]} 17. Nf3 {[%clk 0:02:08]}  Rhe8 {[%clk 0:01:43]} 18. O-O-O {[%clk 0:02:05]}  g5 {[%clk 0:01:31]} 19. Rxd5 {[%clk 0:02:02]}  h6 {[%clk 0:01:25]} 20. Rhd1 {[%clk 0:02:01]}  b6 {[%clk 0:01:24]} 21. Qa6+ {[%clk 0:01:28]}  Kb8 {[%clk 0:01:22]} 22. Qd3 {[%clk 0:01:29]}  Kc7 {[%clk 0:01:12]} 23. Qf5 {[%clk 0:01:23]}  Qxf5 {[%clk 0:01:05]} 24. Rxf5 {[%clk 0:01:24]}  Re6 {[%clk 0:01:04]} 25. Rf7+ {[%clk 0:01:19]}  Rd7 {[%clk 0:01:03]} 26. Rxd7+ {[%clk 0:01:19]}  Kxd7 {[%clk 0:01:04]} 27. c4 {[%clk 0:01:15]}  Kc6 {[%clk 0:01:03]} 28. Rd5 {[%clk 0:01:13]}  Rf6 {[%clk 0:01:03]} 29. b3 {[%clk 0:01:12]}  a6 {[%clk 0:01:00]} 30. a4 {[%clk 0:01:12]}  b5 {[%clk 0:00:58]} 31. axb5+ {[%clk 0:01:13]}  axb5 {[%clk 0:00:59]} 32. Kc2 {[%clk 0:01:14]}  bxc4 {[%clk 0:00:58]} 33. bxc4 {[%clk 0:01:14]}  Bc7 {[%clk 0:00:55]} 34. Rd1 {[%clk 0:01:11]}  Bd6 {[%clk 0:00:55]} 35. Ra1 {[%clk 0:01:11]}  Bc7 {[%clk 0:00:52]} 36. Ra6+ {[%clk 0:01:10]}  Bb6 {[%clk 0:00:52]} 37. Ra8 {[%clk 0:01:11]}  Kb7 {[%clk 0:00:50]} 38. Rh8 {[%clk 0:01:10]}  Kc6 {[%clk 0:00:49]} 39. Kd3 {[%clk 0:01:11]}  Bc7 {[%clk 0:00:48]} 40. Ke4 {[%clk 0:01:11]}  Kd7 {[%clk 0:00:44]} 41. Rh7+ {[%clk 0:01:04]}  Kc6 {[%clk 0:00:43]} 42. Ne5+ {[%clk 0:01:00]}  Bxe5 {[%clk 0:00:42]} 43. Kxe5 {[%clk 0:01:01]}  Rxf2 {[%clk 0:00:42]} 44. Rxh6+ {[%clk 0:01:02]}  Kb7 {[%clk 0:00:41]} 45. g4 {[%clk 0:01:02]}  Rc2 {[%clk 0:00:39]} 46. Kd5 {[%clk 0:01:02]}  Re2 {[%clk 0:00:37]} 47. e4 {[%clk 0:01:02]}  Re3 {[%clk 0:00:36]} 48. e5 {[%clk 0:01:02]}  Kc7 {[%clk 0:00:34]} 49. Rh7+ {[%clk 0:01:02]}  Kd8 {[%clk 0:00:34]} 50. e6 {[%clk 0:01:03]}  Ke8 {[%clk 0:00:34]} 51. Kd6 {[%clk 0:01:03]}  Rd3+ {[%clk 0:00:33]} 52. Kxc5 {[%clk 0:01:04]}  Rd1 {[%clk 0:00:29]} 53. Rg7 {[%clk 0:01:02]}  Re1 {[%clk 0:00:26]} 54. Kd6 {[%clk 0:01:02]}  Rd1+ {[%clk 0:00:24]} 55. Ke5 {[%clk 0:01:03]}  Re1+ {[%clk 0:00:23]} 56. Kf6 {[%clk 0:01:04]}  Rf1+ {[%clk 0:00:22]} 57. Kxg5 {[%clk 0:01:04]}  Rf8 {[%clk 0:00:19]} 58. h4 {[%clk 0:01:04]}  Rf1 {[%clk 0:00:19]} 59. h5 {[%clk 0:01:04]}  Rh1 {[%clk 0:00:18]} 60. h6 {[%clk 0:01:04]}  Rh2 {[%clk 0:00:17]} 61. h7 {[%clk 0:01:04]} 1-0


[Site "https://www.chess.com"]